[Event "Asian Zonal-ch 3.5 Women 2019"]
[Site "Zi Bo"]
[Date "2019.09.06"]
[Round "3.8"]
[White "Zhang, Xiao"]
[Black "Yan, Tianqi"]
[Result "0-1"]
[ECO "D52"]
[WhiteElo "2073"]
[BlackElo "2122"]
[Annotator "ChessBase"]
[PlyCount "121"]
[EventDate "2019.09.05"]
[EventType "swiss"]
[EventCountry "CHN"]
[SourceTitle "playchess.com"]
[Source "ChessBase"]
[SourceQuality "1"]
[TimeControl "5400+30"]

1. d4 {[%emt 0:00:00]} Nf6 {[%emt 0:00:00]} 2. c4 {[%emt 0:00:00]} e6 {[%emt 0:00:00]} 3. Nf3 {[%emt 0:00:09]} d5 {[%emt 0:00:04]} 4. Nc3 {[%emt 0:00:14]} c6 {[%emt 0:00:51]} 5. Bg5 {[%emt 0:00:12]} Nbd7 {[%emt 0:00:11]} 6. e3 {[%emt 0:00:13]} Qa5 {[%emt 0:00:09]} 7. cxd5 {[%emt 0:00:49]} Nxd5 {[%emt 0:02:27]} 8. Qc2 {[%emt 0:00:12]} Bb4 {[%emt 0:03:56]} 9. Rc1 {[%emt 0:00:06]} Qxa2 {[%emt 0:06:01]} 10. Bd3 {[%emt 0:05:07]} Nxc3 {[%emt 0:03:20]} 11. bxc3 {[%emt 0:00:08]} Qxc2 {[%emt 0:00:04]} 12. Rxc2 {[%emt 0:00:05]} Bd6 {[%emt 0:01:11]} 13. Ke2 {[%emt 0:02:47]} b6 {[%emt 0:03:36]} 14. Ra1 {[%emt 0:01:13]} a5 {[%emt 0:01:46]} 15. Nd2 {[%emt 0:07:34]} Ba6 {[%emt 0:07:30]} 16. c4 {[%emt 0:06:54]} f6 {[%emt 0:10:53]} 17. Bh4 {[%emt 0:12:12]} Ke7 {[%emt 0:00:58]} 18. Bg3 {[%emt 0:02:28]} e5 {[%emt 0:03:27]} 19. Nb3 {[%emt 0:03:31]} Bb4 {[%emt 0:09:16]} 20. Bf5 {[%emt 0:14:10]} Bd6 {[%emt 0:05:18]} 21. Bd3 {[%emt 0:00:34]} Bc7 {[%emt 0:09:08]} 22. Kd2 {[%emt 0:02:55]} Bb7 {[%emt 0:04:18]} 23. Rca2 {[%emt 0:02:45]} c5 {[%emt 0:06:45]} 24. d5 {[%emt 0:04:46]} Nb8 {[%emt 0:00:47]} 25. Be4 {[%emt 0:04:30]} Bd6 {[%emt 0:01:50]} 26. Rb1 {[%emt 0:06:19]} Na6 {[%emt 0:01:23]} 27. f4 {[%emt 0:02:10]} exf4 {[%emt 0:05:56]} 28. exf4 {[%emt 0:02:11]} Nb4 {[%emt 0:00:06]} 29. Ra4 {[%emt 0:00:18]} Bc8 {[%emt 0:00:44]} 30. Re1 {[%emt 0:00:49]} Kf7 {[%emt 0:00:20]} 31. f5 {[%emt 0:05:06]} Bxg3 {[%emt 0:00:34]} 32. hxg3 {[%emt 0:00:06]} Bd7 {[%emt 0:00:19]} 33. Ra3 {[%emt 0:00:03]} Rae8 {[%emt 0:00:30]} 34. Nc1 {[%emt 0:01:54]} Re5 {[%emt 0:01:35]} 35. Nd3 {[%emt 0:00:55]} Rxe4 {[%emt 0:01:48]} 36. Rxe4 {[%emt 0:01:00]} Nxd3 {[%emt 0:00:59]} 37. Kxd3 {[%emt 0:01:30]} Bxf5 {[%emt 0:00:02]} 38. g4 {[%emt 0:00:14]} Bxe4+ {[%emt 0:00:23]} 39. Kxe4 {[%emt 0:00:01]} Re8+ {[%emt 0:00:10]} 40. Kf4 {[%emt 0:01:04]} Ke7 {[%emt 0:01:26]} 41. Rh3 {[%emt 0:00:34]} Kd6 {[%emt 0:02:43]} 42. Rxh7 {[%emt 0:02:30]} Re7 {[%emt 0:00:12]} 43. Rh8 {[%emt 0:01:40]} b5 {[%emt 0:00:48]} 44. cxb5 {[%emt 0:03:28]} Kxd5 {[%emt 0:00:03]} 45. Ra8 {[%emt 0:00:08]} Kc4 {[%emt 0:00:48]} 46. b6 {[%emt 0:02:03]} Kb5 {[%emt 0:01:27]} 47. Ra7 {[%emt 0:00:19]} Re6 {[%emt 0:00:20]} 48. Rxg7 {[%emt 0:01:22]} Rxb6 {[%emt 0:00:05]} 49. g5 {[%emt 0:00:06]} fxg5+ {[%emt 0:00:07]} 50. Rxg5 {[%emt 0:00:03]} a4 {[%emt 0:00:07]} 51. Re5 {[%emt 0:00:10]} a3 {[%emt 0:00:14]} 52. Re1 {[%emt 0:00:07]} a2 {[%emt 0:00:24]} 53. Ra1 {[%emt 0:00:39]} Ra6 {[%emt 0:00:06]} 54. g4 {[%emt 0:02:10]} Kb4 {[%emt 0:00:05]} 55. g5 {[%emt 0:00:12]} Kb3 {[%emt 0:00:04]} 56. g6 {[%emt 0:00:10]} Rxg6 {[%emt 0:00:09]} 57. Kf5 {[%emt 0:00:09]} Ra6 {[%emt 0:00:09]} 58. Ke4 {[%emt 0:00:04]} Kb2 {[%emt 0:00:05]} 59. Kd3 {[%emt 0:00:19]} c4+ {[%emt 0:00:13]} 60. Kxc4 {[%emt 0:00:04]} Kxa1 {[%emt 0:00:05]} 61. Kd4 {[%emt 0:00:30]} 0-1

[Event "Asian Zonal-ch 3.5 Women 2019"]
[Site "Zi Bo"]
[Date "2019.09.06"]
[Round "3.9"]
[White "Ren, Xiaoyi"]
[Black "Cai Youyang"]
[Result "1-0"]
[ECO "D36"]
[WhiteElo "2231"]
[BlackElo "1910"]
[Annotator "ChessBase"]
[PlyCount "119"]
[EventDate "2019.09.05"]
[EventType "swiss"]
[EventCountry "CHN"]
[SourceTitle "playchess.com"]
[Source "ChessBase"]
[SourceQuality "1"]
[TimeControl "5400+30"]

1. d4 {[%emt 0:00:00]} Nf6 {[%emt 0:00:00]} 2. c4 {[%emt 0:00:00]} e6 {[%emt 0:00:09]} 3. Nf3 {[%emt 0:00:00]} d5 {[%emt 0:00:06]} 4. Bg5 {[%emt 0:00:01]} Nbd7 {[%emt 0:02:13]} 5. e3 {[%emt 0:00:28]} Be7 {[%emt 0:00:42]} 6. Nc3 {[%emt 0:00:10]} c6 {[%emt 0:00:06]} 7. cxd5 {[%emt 0:00:46]} exd5 {[%emt 0:00:20]} 8. Bd3 {[%emt 0:00:05]} h6 {[%emt 0:00:30]} 9. Bh4 {[%emt 0:00:25]} O-O {[%emt 0:01:56]} 10. Qc2 {[%emt 0:00:24]} Re8 {[%emt 0:06:23]} 11. Bg3 {[%emt 0:00:35]} b6 {[%emt 0:01:26]} 12. O-O {[%emt 0:02:16]} Bb7 {[%emt 0:00:20]} 13. h3 {[%emt 0:00:44]} Nf8 {[%emt 0:05:03]} 14. Ne5 {[%emt 0:02:41]} c5 {[%emt 0:03:29]} 15. dxc5 {[%emt 0:00:35]} bxc5 {[%emt 0:00:10]} 16. Bb5 {[%emt 0:00:10]} d4 {[%emt 0:11:23]} 17. exd4 {[%emt 0:00:51]} cxd4 {[%emt 0:00:39]} 18. Qb3 {[%emt 0:04:48]} dxc3 {[%emt 0:04:26]} 19. Bxe8 {[%emt 0:00:34]} Qxe8 {[%emt 0:00:21]} 20. Qxb7 {[%emt 0:00:10]} Rb8 {[%emt 0:00:18]} 21. Qxa7 {[%emt 0:00:13]} Rxb2 {[%emt 0:02:46]} 22. Qd4 {[%emt 0:06:28]} Rc2 {[%emt 0:07:16]} 23. Rfc1 {[%emt 0:01:21]} Ne6 {[%emt 0:01:05]} 24. Qc4 {[%emt 0:01:09]} Rd2 {[%emt 0:04:03]} 25. Qxc3 {[%emt 0:00:37]} Ne4 {[%emt 0:00:05]} 26. Qc6 {[%emt 0:00:45]} Qxc6 {[%emt 0:00:22]} 27. Nxc6 {[%emt 0:02:26]} Bc5 {[%emt 0:00:13]} 28. Kh2 {[%emt 0:00:50]} f5 {[%emt 0:00:46]} 29. Be5 {[%emt 0:01:36]} Nxf2 {[%emt 0:01:11]} 30. a4 {[%emt 0:01:08]} Re2 {[%emt 0:29:57]} 31. Re1 {[%emt 0:12:07]} Rc2 {[%emt 0:00:08]} 32. Rac1 {[%emt 0:12:15]} Ra2 {[%emt 0:00:06]} 33. a5 {[%emt 0:01:23]} Nd3 {[%emt 0:05:25]} 34. Ra1 {[%emt 0:00:23]} Rc2 {[%emt 0:00:06]} 35. Red1 {[%emt 0:00:40]} Nxe5 {[%emt 0:00:14]} 36. Nxe5 {[%emt 0:00:04]} Bd4 {[%emt 0:00:05]} 37. Rxd4 {[%emt 0:01:26]} Nxd4 {[%emt 0:00:05]} 38. a6 {[%emt 0:00:06]} Rc8 {[%emt 0:03:13]} 39. a7 {[%emt 0:00:49]} Ra8 {[%emt 0:00:02]} 40. Ra5 {[%emt 0:00:05]} g5 {[%emt 0:04:39]} 41. Rd5 {[%emt 0:00:15]} Rxa7 {[%emt 0:00:40]} 42. Rxd4 {[%emt 0:00:06]} Ra5 {[%emt 0:00:10]} 43. Nc6 {[%emt 0:00:18]} Rc5 {[%emt 0:00:13]} 44. Ne7+ {[%emt 0:00:15]} Kf7 {[%emt 0:00:17]} 45. Rd5 {[%emt 0:00:55]} Rxd5 {[%emt 0:00:25]} 46. Nxd5 {[%emt 0:00:04]} Ke6 {[%emt 0:00:03]} 47. Nc3 {[%emt 0:00:04]} h5 {[%emt 0:00:06]} 48. Kg3 {[%emt 0:00:06]} Ke5 {[%emt 0:00:04]} 49. Kf3 {[%emt 0:02:51]} Kd4 {[%emt 0:02:58]} 50. Nb5+ {[%emt 0:01:33]} Ke5 {[%emt 0:00:13]} 51. Nc7 {[%emt 0:00:24]} g4+ {[%emt 0:01:39]} 52. hxg4 {[%emt 0:00:33]} hxg4+ {[%emt 0:01:08]} 53. Kg3 {[%emt 0:00:06]} Ke4 {[%emt 0:00:05]} 54. Ne6 {[%emt 0:00:04]} Ke3 {[%emt 0:00:26]} 55. Ng5 {[%emt 0:01:23]} f4+ {[%emt 0:01:19]} 56. Kxg4 {[%emt 0:00:06]} Kf2 {[%emt 0:00:02]} 57. Kh3 {[%emt 0:00:03]} Ke3 {[%emt 0:00:03]} 58. Nf3 {[%emt 0:00:07]} Kf2 {[%emt 0:00:04]} 59. Nh4 {[%emt 0:00:15]} Ke3 {[%emt 0:00:03]} 60. Kg4 {[%emt 0:00:04]} 1-0

[Event "Asian Zonal-ch 3.5 Women 2019"]
[Site "Zi Bo"]
[Date "2019.09.06"]
[Round "3.10"]
[White "Zhou, Zirun"]
[Black "Wang, Yuehan"]
[Result "1-0"]
[ECO "E54"]
[WhiteElo "2155"]
[BlackElo "1600"]
[Annotator "ChessBase"]
[PlyCount "63"]
[EventDate "2019.09.05"]
[EventType "swiss"]
[EventCountry "CHN"]
[SourceTitle "playchess.com"]
[Source "ChessBase"]
[SourceQuality "1"]
[TimeControl "5400+30"]

1. d4 {[%emt 0:00:00]} Nf6 {[%emt 0:00:00]} 2. c4 {[%emt 0:00:00]} e6 {[%emt 0:00:00]} 3. Nc3 {[%emt 0:00:00]} Bb4 {[%emt 0:00:00]} 4. e3 {[%emt 0:00:00]} O-O {[%emt 0:00:25]} 5. Bd3 {[%emt 0:00:00]} d5 {[%emt 0:01:00]} 6. Nf3 {[%emt 0:00:05]} c5 {[%emt 0:02:14]} 7. O-O {[%emt 0:00:06]} cxd4 {[%emt 0:06:50]} 8. exd4 {[%emt 0:00:07]} b6 {[%emt 0:02:17]} 9. Bg5 {[%emt 0:02:18]} dxc4 {[%emt 0:03:33]} 10. Be4 {[%emt 0:00:09]} Nc6 {[%emt 0:09:53]} 11. Bxc6 {[%emt 0:00:08]} Rb8 {[%emt 0:00:11]} 12. Ne4 {[%emt 0:00:37]} Qc7 {[%emt 0:06:04]} 13. Nxf6+ {[%emt 0:00:16]} gxf6 {[%emt 0:01:43]} 14. Bxf6 {[%emt 0:00:07]} Qxc6 {[%emt 0:00:38]} 15. Qc1 {[%emt 0:00:16]} Qe4 {[%emt 0:15:27]} 16. Ne5 {[%emt 0:00:18]} Bb7 {[%emt 0:04:23]} 17. Qg5+ {[%emt 0:00:12]} Qg6 {[%emt 0:00:14]} 18. Nxg6 {[%emt 0:00:07]} fxg6 {[%emt 0:00:08]} 19. h4 {[%emt 0:03:08]} Be4 {[%emt 0:02:25]} 20. Qe5 {[%emt 0:00:37]} Bf5 {[%emt 0:02:13]} 21. Qc7 {[%emt 0:00:17]} Rxf6 {[%emt 0:01:32]} 22. Qxb8+ {[%emt 0:00:05]} Rf8 {[%emt 0:00:08]} 23. Qxa7 {[%emt 0:00:05]} c3 {[%emt 0:03:35]} 24. bxc3 {[%emt 0:01:02]} Bxc3 {[%emt 0:00:08]} 25. Qxb6 {[%emt 0:00:06]} Bxa1 {[%emt 0:03:02]} 26. Rxa1 {[%emt 0:00:03]} Re8 {[%emt 0:00:43]} 27. a4 {[%emt 0:00:14]} Be4 {[%emt 0:00:09]} 28. a5 {[%emt 0:00:03]} Bd5 {[%emt 0:00:06]} 29. a6 {[%emt 0:00:03]} Ra8 {[%emt 0:00:46]} 30. a7 {[%emt 0:00:06]} Kf7 {[%emt 0:05:16]} 31. Qc7+ {[%emt 0:00:05]} Ke8 {[%emt 0:01:29]} 32. Rb1 {[%emt 0:00:04]} 1-0

[Event "Asian Zonal-ch 3.5 Women 2019"]
[Site "Zi Bo"]
[Date "2019.09.06"]
[Round "3.11"]
[White "Zhang, Yuxuan"]
[Black "Ha, Yihan"]
[Result "1-0"]
[ECO "B19"]
[WhiteElo "1979"]
[BlackElo "1580"]
[Annotator "NA"]
[PlyCount "61"]
[EventDate "2019.09.05"]
[EventType "swiss"]
[EventCountry "CHN"]
[SourceTitle "playchess.com"]
[Source "ChessBase"]
[SourceQuality "1"]
[TimeControl "5400+30"]

1. e4 {[%emt 0:00:00]} c6 {[%emt 0:00:00]} 2. d4 {[%emt 0:00:00]} d5 {[%emt 0:00:00]} 3. Nd2 {[%emt 0:00:00]} dxe4 {[%emt 0:00:00]} 4. Nxe4 {[%emt 0:00:00]} Bf5 {[%emt 0:00:00]} 5. Ng3 {[%emt 0:00:00]} Bg6 {[%emt 0:00:07]} 6. h4 {[%emt 0:00:07]} h6 {[%emt 0:00:06]} 7. Nf3 {[%emt 0:00:05]} Nd7 {[%emt 0:00:07]} 8. h5 {[%emt 0:00:05]} Bh7 {[%emt 0:00:06]} 9. Bd3 {[%emt 0:00:06]} Bxd3 {[%emt 0:00:11]} 10. Qxd3 {[%emt 0:00:12]} e6 {[%emt 0:00:07]} 11. Bd2 {[%emt 0:00:06]} Ngf6 {[%emt 0:00:06]} 12. O-O-O {[%emt 0:00:08]} Be7 {[%emt 0:00:07]} 13. Qe2 {[%emt 0:01:11]} c5 {[%emt 0:00:46]} 14. dxc5 {[%emt 0:03:28]} Qc7 {[%emt 0:00:08]} 15. Bc3 {[%emt 0:04:38]} O-O {[%emt 0:06:07]} 16. Nf1 {[%emt 0:09:27]} Nxc5 {[%emt 0:03:24]} 17. Ne3 {[%emt 0:02:28]} Rac8 {[%emt 0:03:58]} 18. g4 {[%emt 0:00:58]} Nh7 {[%emt 0:02:00]} 19. Be5 {[%emt 0:02:34]} Qa5 {[%emt 0:03:02]} 20. Kb1 {[%emt 0:00:39]} b5 {[%emt 0:03:44]} 21. g5 {[%emt 0:09:01]} Nxg5 {[%emt 0:11:57]} 22. Nxg5 {[%emt 0:00:22]} Bxg5 {[%emt 0:00:12]} 23. f4 {[%emt 0:00:09]} Be7 {[%emt 0:02:03]} 24. Rhg1 {[%emt 0:00:05]} f6 {[%emt 0:00:58]} 25. Rxg7+ {[%emt 0:00:27]} Kxg7 {[%emt 0:08:05]} 26. Qg4+ {[%emt 0:00:07]} Kh8 {[%emt 0:00:06]} 27. Qg6 {[%emt 0:00:06]} Ne4 {[%emt 0:05:50]} 28. Qxh6+ {[%emt 0:00:21]} Kg8 {[%emt 0:00:06]} 29. Rg1+ {[%emt 0:00:05]} Ng5 {[%emt 0:00:08]} 30. Rxg5+ {[%emt 0:00:04]} fxg5 {[%emt 0:00:05]} 31. Qg7# {[%emt 0:00:04]} 1-0

[Event "Asian Zonal-ch 3.5 Women 2019"]
[Site "Zi Bo"]
[Date "2019.09.06"]
[Round "3.12"]
[White "Xue, Yue"]
[Black "Zhao, Caidi"]
[Result "1/2-1/2"]
[ECO "B50"]
[WhiteElo "1678"]
[BlackElo "1540"]
[Annotator "NA"]
[PlyCount "110"]
[EventDate "2019.09.05"]
[EventType "swiss"]
[EventCountry "CHN"]
[SourceTitle "playchess.com"]
[Source "ChessBase"]
[SourceQuality "1"]
[TimeControl "5400+30"]

1. e4 {[%emt 0:00:00]} c5 {[%emt 0:00:00]} 2. Nf3 {[%emt 0:00:00]} d6 {[%emt 0:00:00]} 3. c3 {[%emt 0:00:34]} e5 {[%emt 0:00:08]} 4. h3 {[%emt 0:01:13]} Nf6 {[%emt 0:00:37]} 5. Be2 {[%emt 0:02:11]} Nc6 {[%emt 0:00:37]} 6. d3 {[%emt 0:00:09]} Be7 {[%emt 0:00:24]} 7. O-O {[%emt 0:00:20]} O-O {[%emt 0:00:29]} 8. Re1 {[%emt 0:01:40]} h6 {[%emt 0:01:01]} 9. Nbd2 {[%emt 0:00:31]} Nh7 {[%emt 0:00:40]} 10. Nf1 {[%emt 0:02:48]} Kh8 {[%emt 0:04:19]} 11. d4 {[%emt 0:11:21]} Ng5 {[%emt 0:03:02]} 12. Nxg5 {[%emt 0:05:43]} Bxg5 {[%emt 0:00:22]} 13. dxc5 {[%emt 0:02:19]} Bxc1 {[%emt 0:01:28]} 14. Rxc1 {[%emt 0:00:17]} dxc5 {[%emt 0:00:11]} 15. Qxd8 {[%emt 0:02:37]} Rxd8 {[%emt 0:00:43]} 16. Bc4 {[%emt 0:00:36]} f6 {[%emt 0:02:38]} 17. Rcd1 {[%emt 0:02:48]} Bd7 {[%emt 0:02:22]} 18. Ne3 {[%emt 0:07:39]} Na5 {[%emt 0:02:05]} 19. Bd5 {[%emt 0:02:17]} Rac8 {[%emt 0:06:07]} 20. b3 {[%emt 0:06:12]} b6 {[%emt 0:03:28]} 21. Rd2 {[%emt 0:10:24]} Be8 {[%emt 0:05:21]} 22. Red1 {[%emt 0:01:33]} Nc6 {[%emt 0:01:44]} 23. Nf5 {[%emt 0:04:14]} Bg6 {[%emt 0:12:37]} 24. Nh4 {[%emt 0:03:28]} Be8 {[%emt 0:05:12]} 25. Nf5 {[%emt 0:04:03]} Bg6 {[%emt 0:01:41]} 26. Bxc6 {[%emt 0:11:11]} Rxd2 {[%emt 0:00:25]} 27. Rxd2 {[%emt 0:00:01]} Bxf5 {[%emt 0:00:28]} 28. Bd7 {[%emt 0:00:06]} Bxd7 {[%emt 0:02:10]} 29. Rxd7 {[%emt 0:00:01]} a6 {[%emt 0:03:23]} 30. Rd6 {[%emt 0:01:25]} Rb8 {[%emt 0:01:42]} 31. Kf1 {[%emt 0:02:27]} Kg8 {[%emt 0:03:45]} 32. Ke2 {[%emt 0:00:46]} Kf8 {[%emt 0:00:27]} 33. Rd7 {[%emt 0:01:11]} Re8 {[%emt 0:06:18]} 34. Rb7 {[%emt 0:01:23]} Re6 {[%emt 0:01:27]} 35. Kd3 {[%emt 0:01:48]} Rd6+ {[%emt 0:01:52]} 36. Kc4 {[%emt 0:06:58]} b5+ {[%emt 0:02:24]} 37. Kxc5 {[%emt 0:00:03]} Rd2 {[%emt 0:00:22]} 38. Kb6 {[%emt 0:00:54]} Rxa2 {[%emt 0:00:49]} 39. c4 {[%emt 0:02:09]} bxc4 {[%emt 0:03:10]} 40. bxc4 {[%emt 0:00:01]} Rb2+ {[%emt 0:02:55]} 41. Kxa6 {[%emt 0:00:12]} Ra2+ {[%emt 0:01:08]} 42. Kb5 {[%emt 0:00:23]} Rb2+ {[%emt 0:00:20]} 43. Kc6 {[%emt 0:01:13]} Rxf2 {[%emt 0:04:54]} 44. c5 {[%emt 0:00:02]} Rc2 {[%emt 0:01:37]} 45. Rb3 {[%emt 0:01:32]} Ke7 {[%emt 0:01:25]} 46. Rb7+ {[%emt 0:00:57]} Kf8 {[%emt 0:01:26]} 47. Kd6 {[%emt 0:01:07]} Rd2+ {[%emt 0:00:39]} 48. Ke6 {[%emt 0:00:15]} g5 {[%emt 0:01:02]} 49. Kxf6 {[%emt 0:00:04]} Ke8 {[%emt 0:00:31]} 50. Re7+ {[%emt 0:00:30]} Kd8 {[%emt 0:00:08]} 51. Rxe5 {[%emt 0:00:09]} Rxg2 {[%emt 0:00:16]} 52. Rd5+ {[%emt 0:00:09]} Kc7 {[%emt 0:00:20]} 53. Kg6 {[%emt 0:00:48]} g4 {[%emt 0:00:43]} 54. hxg4 {[%emt 0:02:17]} Rxg4+ {[%emt 0:00:02]} 55. Kxh6 {[%emt 0:01:36]} Rxe4 {[%emt 0:00:16]} 1/2-1/2